[Event "Titled Tuesday Blitz November 22 Late 2022"]
[White "Feng, Eric"]
[Black "Silva, Caio Henrique Angelico"]
[WhiteFideId "30952590"]
[BlackFideId "22777210"]
[WhiteElo "1785"]
[BlackElo "1990"]
[Result "1-0"]
[Round "05"]
[TimeControl "180+1"]
[Date "2022.11.23"]
[WhiteClock "0:01:01"]
[BlackClock "0:00:50"]

1. d4 {[%clk 0:03:00]}  Nf6 {[%clk 0:02:59]} 2. c4 {[%clk 0:02:58]}  g6 {[%clk 0:02:58]} 3. Nf3 {[%clk 0:02:59]}  Bg7 {[%clk 0:02:58]} 4. g3 {[%clk 0:02:59]}  O-O {[%clk 0:02:57]} 5. Bg2 {[%clk 0:03:00]}  d6 {[%clk 0:02:53]} 6. O-O {[%clk 0:02:59]}  Nc6 {[%clk 0:02:53]} 7. Nc3 {[%clk 0:02:59]}  e5 {[%clk 0:02:53]} 8. d5 {[%clk 0:02:59]}  Na5 {[%clk 0:02:50]} 9. Nd2 {[%clk 0:02:43]}  c5 {[%clk 0:02:46]} 10. dxc6 {[%clk 0:02:37]}  Nxc6 {[%clk 0:02:45]} 11. Nde4 {[%clk 0:02:38]}  Nxe4 {[%clk 0:02:44]} 12. Nxe4 {[%clk 0:02:39]}  Be6 {[%clk 0:02:22]} 13. Nxd6 {[%clk 0:02:37]}  Qc7 {[%clk 0:02:00]} 14. Nb5 {[%clk 0:02:31]}  Qc8 {[%clk 0:02:01]} 15. b3 {[%clk 0:02:27]}  Rd8 {[%clk 0:01:53]} 16. Qc2 {[%clk 0:02:23]}  a6 {[%clk 0:01:52]} 17. Nc3 {[%clk 0:02:23]}  Nd4 {[%clk 0:01:51]} 18. Qe4 {[%clk 0:02:21]}  Rb8 {[%clk 0:01:41]} 19. Bb2 {[%clk 0:01:50]}  b5 {[%clk 0:01:37]} 20. cxb5 {[%clk 0:01:48]}  axb5 {[%clk 0:01:38]} 21. Rac1 {[%clk 0:01:45]}  Qa6 {[%clk 0:01:35]} 22. e3 {[%clk 0:01:43]}  Nf5 {[%clk 0:01:32]} 23. Rfd1 {[%clk 0:01:34]}  Nd6 {[%clk 0:01:24]} 24. Qc6 {[%clk 0:01:33]}  Qxc6 {[%clk 0:01:21]} 25. Bxc6 {[%clk 0:01:34]}  b4 {[%clk 0:01:21]} 26. Nd5 {[%clk 0:01:34]}  Ne4 {[%clk 0:01:08]} 27. Ne7+ {[%clk 0:01:31]}  Kf8 {[%clk 0:01:08]} 28. Nxg6+ {[%clk 0:01:31]}  hxg6 {[%clk 0:01:09]} 29. Bxe4 {[%clk 0:01:31]}  f5 {[%clk 0:01:06]} 30. Bc6 {[%clk 0:01:29]}  e4 {[%clk 0:01:05]} 31. Bxg7+ {[%clk 0:01:28]}  Kxg7 {[%clk 0:01:06]} 32. Kg2 {[%clk 0:01:20]}  Rbc8 {[%clk 0:01:04]} 33. Rxd8 {[%clk 0:01:16]}  Rxd8 {[%clk 0:01:04]} 34. Bb5 {[%clk 0:01:16]}  Rd2 {[%clk 0:01:02]} 35. Rc6 {[%clk 0:01:13]}  Bd5 {[%clk 0:00:56]} 36. Rd6 {[%clk 0:01:12]}  Kf7 {[%clk 0:00:56]} 37. Bc4 {[%clk 0:01:06]}  Bxc4 {[%clk 0:00:49]} 38. Rxd2 {[%clk 0:01:07]}  Bd3 {[%clk 0:00:50]} 39. Rxd3 {[%clk 0:01:01]}  exd3 {[%clk 0:00:50]} 40. Kf1 {[%clk 0:01:01]}  Ke6 {[%clk 0:00:49]} 41. Ke1 {[%clk 0:01:01]}  Kd5 {[%clk 0:00:49]} 42. f3 {[%clk 0:01:02]}  g5 {[%clk 0:00:47]} 43. Kd2 {[%clk 0:01:00]}  g4 {[%clk 0:00:48]} 44. fxg4 {[%clk 0:01:00]}  fxg4 {[%clk 0:00:49]} 45. Kxd3 {[%clk 0:01:01]}  Ke5 {[%clk 0:00:50]} 46. e4 {[%clk 0:01:01]} 1-0


[Site "https://www.chess.com"]

[Event "Titled Tuesday Blitz November 22 Late 2022"]
[White "Fernandez Siles, Luis"]
[Black "Souleidis, Georgios"]
[WhiteFideId "2209420"]
[BlackFideId "4206827"]
[WhiteElo "2186"]
[BlackElo "2401"]
[Result "0-1"]
[Round "05"]
[TimeControl "180+1"]
[Date "2022.11.23"]
[WhiteClock "0:00:01"]
[BlackClock "0:00:13"]

1. d4 {[%clk 0:03:00]}  Nf6 {[%clk 0:02:59]} 2. c4 {[%clk 0:03:00]}  g6 {[%clk 0:03:00]} 3. Nc3 {[%clk 0:03:00]}  Bg7 {[%clk 0:03:00]} 4. e4 {[%clk 0:03:00]}  d6 {[%clk 0:03:01]} 5. Nf3 {[%clk 0:03:00]}  O-O {[%clk 0:03:01]} 6. Be2 {[%clk 0:03:00]}  e5 {[%clk 0:03:01]} 7. O-O {[%clk 0:02:59]}  Bg4 {[%clk 0:03:01]} 8. dxe5 {[%clk 0:02:39]}  Bxf3 {[%clk 0:02:58]} 9. Bxf3 {[%clk 0:02:03]}  dxe5 {[%clk 0:02:56]} 10. Qb3 {[%clk 0:02:03]}  b6 {[%clk 0:02:01]} 11. Rd1 {[%clk 0:02:01]}  Qc8 {[%clk 0:01:54]} 12. Nd5 {[%clk 0:01:56]}  Nc6 {[%clk 0:01:32]} 13. Qb5 {[%clk 0:01:49]}  Nxd5 {[%clk 0:01:31]} 14. Qxc6 {[%clk 0:01:18]}  Nb4 {[%clk 0:01:29]} 15. Qa4 {[%clk 0:01:13]}  c5 {[%clk 0:01:29]} 16. Bg5 {[%clk 0:00:41]}  Nc6 {[%clk 0:01:23]} 17. Rd5 {[%clk 0:00:29]}  Nd4 {[%clk 0:01:20]} 18. Bd1 {[%clk 0:00:29]}  f5 {[%clk 0:00:51]} 19. exf5 {[%clk 0:00:20]}  Qxf5 {[%clk 0:00:50]} 20. Be3 {[%clk 0:00:20]}  Qe6 {[%clk 0:00:30]} 21. Qd7 {[%clk 0:00:19]}  Qxd7 {[%clk 0:00:25]} 22. Rxd7 {[%clk 0:00:20]}  Rf7 {[%clk 0:00:26]} 23. Rxf7 {[%clk 0:00:19]}  Kxf7 {[%clk 0:00:27]} 24. Bxd4 {[%clk 0:00:19]}  exd4 {[%clk 0:00:27]} 25. Bf3 {[%clk 0:00:20]}  Re8 {[%clk 0:00:24]} 26. Bd5+ {[%clk 0:00:20]}  Kf8 {[%clk 0:00:24]} 27. Kf1 {[%clk 0:00:20]}  d3 {[%clk 0:00:24]} 28. Re1 {[%clk 0:00:18]}  Bxb2 {[%clk 0:00:21]} 29. Rxe8+ {[%clk 0:00:18]}  Kxe8 {[%clk 0:00:22]} 30. Ke1 {[%clk 0:00:17]}  Bc3+ {[%clk 0:00:22]} 31. Kd1 {[%clk 0:00:16]}  Ke7 {[%clk 0:00:22]} 32. Be4 {[%clk 0:00:17]}  d2 {[%clk 0:00:23]} 33. Ke2 {[%clk 0:00:16]}  Kf6 {[%clk 0:00:23]} 34. Bc2 {[%clk 0:00:17]}  h6 {[%clk 0:00:23]} 35. Kd3 {[%clk 0:00:17]}  Bb4 {[%clk 0:00:23]} 36. Bd1 {[%clk 0:00:17]}  g5 {[%clk 0:00:23]} 37. g4 {[%clk 0:00:15]}  Ke5 {[%clk 0:00:23]} 38. Ke3 {[%clk 0:00:13]}  a6 {[%clk 0:00:23]} 39. h3 {[%clk 0:00:13]}  b5 {[%clk 0:00:23]} 40. Kd3 {[%clk 0:00:13]}  bxc4+ {[%clk 0:00:22]} 41. Kxc4 {[%clk 0:00:13]}  Kf4 {[%clk 0:00:23]} 42. Kd5 {[%clk 0:00:11]}  a5 {[%clk 0:00:22]} 43. Kc4 {[%clk 0:00:11]}  a4 {[%clk 0:00:21]} 44. Kb5 {[%clk 0:00:08]}  a3 {[%clk 0:00:21]} 45. Kc4 {[%clk 0:00:08]}  Ke4 {[%clk 0:00:22]} 46. Kb3 {[%clk 0:00:07]}  Kd3 {[%clk 0:00:22]} 47. Bf3 {[%clk 0:00:04]}  Ba5 {[%clk 0:00:15]} 48. Bd1 {[%clk 0:00:03]}  c4+ {[%clk 0:00:14]} 49. Kxa3 {[%clk 0:00:03]}  c3 {[%clk 0:00:15]} 50. Kb3 {[%clk 0:00:03]}  Bc7 {[%clk 0:00:14]} 51. a4 {[%clk 0:00:03]}  Ba5 {[%clk 0:00:14]} 52. f3 {[%clk 0:00:02]}  Bc7 {[%clk 0:00:13]} 53. Bc2+ {[%clk 0:00:01]}  Ke2 {[%clk 0:00:13]} 0-1


[Site "https://www.chess.com"]

[Event "Titled Tuesday Blitz November 22 Late 2022"]
[White "Forgacs, Attila Jr."]
[Black "Sabar, Ethmane Daouda"]
[WhiteFideId "773654"]
[BlackFideId "19600097"]
[WhiteElo "2168"]
[BlackElo "1950"]
[Result "1-0"]
[Round "05"]
[TimeControl "180+1"]
[Date "2022.11.23"]
[WhiteClock "0:00:08"]
[BlackClock "0:00:33"]

1. e4 {[%clk 0:01:32]}  c5 {[%clk 0:02:58]} 2. Nf3 {[%clk 0:01:32]}  Nc6 {[%clk 0:02:58]} 3. d4 {[%clk 0:01:31]}  cxd4 {[%clk 0:02:59]} 4. Nxd4 {[%clk 0:01:32]}  e5 {[%clk 0:02:59]} 5. Nb5 {[%clk 0:01:32]}  a6 {[%clk 0:03:00]} 6. Nd6+ {[%clk 0:01:31]}  Bxd6 {[%clk 0:03:01]} 7. Qxd6 {[%clk 0:01:32]}  Qf6 {[%clk 0:03:01]} 8. Qxf6 {[%clk 0:01:32]}  Nxf6 {[%clk 0:03:02]} 9. Nc3 {[%clk 0:01:33]}  b5 {[%clk 0:02:58]} 10. a3 {[%clk 0:01:32]}  d6 {[%clk 0:02:52]} 11. Bg5 {[%clk 0:01:31]}  Be6 {[%clk 0:02:52]} 12. O-O-O {[%clk 0:01:26]}  Ke7 {[%clk 0:02:52]} 13. Nd5+ {[%clk 0:01:22]}  Bxd5 {[%clk 0:02:52]} 14. Rxd5 {[%clk 0:01:23]}  Rhd8 {[%clk 0:02:46]} 15. c3 {[%clk 0:01:09]}  h6 {[%clk 0:02:40]} 16. Bxf6+ {[%clk 0:01:09]}  Kxf6 {[%clk 0:02:39]} 17. Be2 {[%clk 0:01:10]}  Rac8 {[%clk 0:02:19]} 18. Rhd1 {[%clk 0:01:10]}  Ke7 {[%clk 0:02:18]} 19. Kb1 {[%clk 0:01:09]}  g6 {[%clk 0:02:15]} 20. a4 {[%clk 0:01:09]}  Rb8 {[%clk 0:02:10]} 21. axb5 {[%clk 0:01:08]}  axb5 {[%clk 0:02:04]} 22. Bxb5 {[%clk 0:01:06]}  Na5 {[%clk 0:01:59]} 23. Be2 {[%clk 0:01:01]}  Nb3 {[%clk 0:01:58]} 24. Kc2 {[%clk 0:01:00]}  Nc5 {[%clk 0:01:55]} 25. f3 {[%clk 0:00:57]}  Rb6 {[%clk 0:01:45]} 26. Ra1 {[%clk 0:00:48]}  Rdb8 {[%clk 0:01:40]} 27. b4 {[%clk 0:00:48]}  Ne6 {[%clk 0:01:39]} 28. g3 {[%clk 0:00:43]}  f5 {[%clk 0:01:36]} 29. Bc4 {[%clk 0:00:33]}  Rc8 {[%clk 0:01:33]} 30. Ra7+ {[%clk 0:00:29]}  Kf6 {[%clk 0:01:30]} 31. Bb3 {[%clk 0:00:17]}  fxe4 {[%clk 0:01:29]} 32. fxe4 {[%clk 0:00:17]}  Ng5 {[%clk 0:01:27]} 33. Kd3 {[%clk 0:00:13]}  h5 {[%clk 0:00:43]} 34. h4 {[%clk 0:00:13]}  Ne6 {[%clk 0:00:42]} 35. Rda5 {[%clk 0:00:12]}  Nc7 {[%clk 0:00:37]} 36. Bd5 {[%clk 0:00:09]}  Nb5 {[%clk 0:00:33]} 37. Rf7# {[%clk 0:00:08]} 1-0


[Site "https://www.chess.com"]

[Event "Titled Tuesday Blitz November 22 Late 2022"]
[White "Ghazarian, Kirk"]
[Black "Jegorovas, Aleksandras"]
[WhiteFideId "30908604"]
[BlackFideId "12801950"]
[WhiteElo "2346"]
[BlackElo "2247"]
[Result "1-0"]
[Round "05"]
[TimeControl "180+1"]
[Date "2022.11.23"]
[WhiteClock "0:00:17"]
[BlackClock "0:00:16"]

1. Nf3 {[%clk 0:03:00]}  Nf6 {[%clk 0:02:50]} 2. g3 {[%clk 0:03:01]}  b6 {[%clk 0:02:49]} 3. Bg2 {[%clk 0:03:02]}  Bb7 {[%clk 0:02:49]} 4. O-O {[%clk 0:03:03]}  e6 {[%clk 0:02:50]} 5. b3 {[%clk 0:03:04]}  c5 {[%clk 0:02:49]} 6. Bb2 {[%clk 0:03:04]}  Be7 {[%clk 0:02:49]} 7. e3 {[%clk 0:03:05]}  O-O {[%clk 0:02:49]} 8. c4 {[%clk 0:03:05]}  a6 {[%clk 0:02:49]} 9. Nc3 {[%clk 0:03:05]}  d6 {[%clk 0:02:47]} 10. Rc1 {[%clk 0:03:06]}  Nbd7 {[%clk 0:02:46]} 11. d4 {[%clk 0:03:06]}  cxd4 {[%clk 0:02:46]} 12. Nxd4 {[%clk 0:03:07]}  Qc7 {[%clk 0:02:45]} 13. Bxb7 {[%clk 0:03:05]}  Qxb7 {[%clk 0:02:44]} 14. Qf3 {[%clk 0:03:06]}  Qc7 {[%clk 0:02:40]} 15. Rfd1 {[%clk 0:03:05]}  Rac8 {[%clk 0:02:38]} 16. Qe2 {[%clk 0:03:01]}  Ne5 {[%clk 0:02:35]} 17. f4 {[%clk 0:02:58]}  Nc6 {[%clk 0:02:34]} 18. Nf3 {[%clk 0:02:55]}  Qb7 {[%clk 0:02:30]} 19. e4 {[%clk 0:02:55]}  Rfd8 {[%clk 0:02:29]} 20. Re1 {[%clk 0:02:54]}  Bf8 {[%clk 0:02:26]} 21. Rcd1 {[%clk 0:02:54]}  Rb8 {[%clk 0:02:18]} 22. Kg2 {[%clk 0:02:52]}  b5 {[%clk 0:02:17]} 23. cxb5 {[%clk 0:02:37]}  axb5 {[%clk 0:02:17]} 24. e5 {[%clk 0:02:38]}  dxe5 {[%clk 0:02:14]} 25. fxe5 {[%clk 0:02:31]}  Ng4 {[%clk 0:02:08]} 26. Ne4 {[%clk 0:02:30]}  Rxd1 {[%clk 0:01:59]} 27. Rxd1 {[%clk 0:02:31]}  Rd8 {[%clk 0:01:28]} 28. Rxd8 {[%clk 0:02:27]}  Nxd8 {[%clk 0:01:28]} 29. h3 {[%clk 0:02:27]}  Nh6 {[%clk 0:01:28]} 30. g4 {[%clk 0:02:24]}  Nc6 {[%clk 0:01:27]} 31. Nd6 {[%clk 0:02:21]}  Bxd6 {[%clk 0:01:23]} 32. exd6 {[%clk 0:02:22]}  b4 {[%clk 0:01:08]} 33. Qd2 {[%clk 0:02:19]}  Qd7 {[%clk 0:01:06]} 34. Qg5 {[%clk 0:02:03]}  f6 {[%clk 0:01:00]} 35. Bxf6 {[%clk 0:02:00]}  Kf8 {[%clk 0:00:54]} 36. Bb2 {[%clk 0:01:34]}  Ng8 {[%clk 0:00:44]} 37. Qf4+ {[%clk 0:01:32]}  Ke8 {[%clk 0:00:43]} 38. Ng5 {[%clk 0:01:29]}  h6 {[%clk 0:00:42]} 39. Ne4 {[%clk 0:01:23]}  g5 {[%clk 0:00:36]} 40. Qf1 {[%clk 0:01:12]}  e5 {[%clk 0:00:34]} 41. Qc4 {[%clk 0:01:10]}  Kf8 {[%clk 0:00:26]} 42. Qb5 {[%clk 0:01:05]}  h5 {[%clk 0:00:23]} 43. Qf1+ {[%clk 0:00:47]}  Kg7 {[%clk 0:00:22]} 44. gxh5 {[%clk 0:00:38]}  g4 {[%clk 0:00:22]} 45. Kh2 {[%clk 0:00:28]}  gxh3 {[%clk 0:00:21]} 46. Qg1+ {[%clk 0:00:28]}  Kh8 {[%clk 0:00:19]} 47. Qg6 {[%clk 0:00:24]}  Qg7 {[%clk 0:00:19]} 48. Qxg7+ {[%clk 0:00:18]}  Kxg7 {[%clk 0:00:18]} 49. Kxh3 {[%clk 0:00:19]}  Kf7 {[%clk 0:00:17]} 50. Kg4 {[%clk 0:00:16]}  Ke6 {[%clk 0:00:17]} 51. Kg5 {[%clk 0:00:17]}  Kd5 {[%clk 0:00:17]} 52. Nf6+ {[%clk 0:00:16]}  Nxf6 {[%clk 0:00:16]} 53. Kxf6 {[%clk 0:00:17]}  Kxd6 {[%clk 0:00:16]} 54. h6 {[%clk 0:00:17]}  e4 {[%clk 0:00:16]} 55. h7 {[%clk 0:00:16]}  e3 {[%clk 0:00:16]} 56. h8=Q {[%clk 0:00:17]}  e2 {[%clk 0:00:16]} 57. Qh2+ {[%clk 0:00:17]} 1-0


[Site "https://www.chess.com"]

[Event "Titled Tuesday Blitz November 22 Late 2022"]
[White "Gonzalez, Francisco Silva"]
[Black "Gritsenko, Nikolai"]
[WhiteFideId "1512285"]
[BlackFideId "14112493"]
[WhiteElo "2159"]
[BlackElo "2389"]
[Result "0-1"]
[Round "05"]
[TimeControl "180+1"]
[Date "2022.11.23"]
[WhiteClock "0:00:06"]
[BlackClock "0:00:05"]

1. d4 {[%clk 0:03:00]}  d5 {[%clk 0:02:59]} 2. c4 {[%clk 0:02:59]}  Nc6 {[%clk 0:02:59]} 3. Nf3 {[%clk 0:02:58]}  Bg4 {[%clk 0:02:58]} 4. Nbd2 {[%clk 0:02:58]}  e6 {[%clk 0:02:57]} 5. e3 {[%clk 0:02:57]}  Nf6 {[%clk 0:02:53]} 6. h3 {[%clk 0:02:57]}  Bh5 {[%clk 0:02:53]} 7. Qa4 {[%clk 0:02:56]}  Bxf3 {[%clk 0:02:39]} 8. Nxf3 {[%clk 0:02:54]}  Bb4+ {[%clk 0:02:39]} 9. Bd2 {[%clk 0:02:55]}  Bxd2+ {[%clk 0:02:37]} 10. Nxd2 {[%clk 0:02:55]}  O-O {[%clk 0:02:36]} 11. Nf3 {[%clk 0:02:51]}  Ne7 {[%clk 0:02:32]} 12. c5 {[%clk 0:02:49]}  c6 {[%clk 0:02:26]} 13. Rc1 {[%clk 0:02:47]}  Ng6 {[%clk 0:02:24]} 14. Bd3 {[%clk 0:02:46]}  Nd7 {[%clk 0:02:24]} 15. h4 {[%clk 0:02:39]}  Re8 {[%clk 0:02:23]} 16. h5 {[%clk 0:02:39]}  Ngf8 {[%clk 0:02:22]} 17. Qc2 {[%clk 0:02:38]}  e5 {[%clk 0:02:14]} 18. Be2 {[%clk 0:02:37]}  Qf6 {[%clk 0:01:58]} 19. Kf1 {[%clk 0:02:35]}  h6 {[%clk 0:01:53]} 20. b4 {[%clk 0:02:32]}  a6 {[%clk 0:01:52]} 21. a4 {[%clk 0:02:32]}  Ne6 {[%clk 0:01:50]} 22. Rd1 {[%clk 0:02:22]}  exd4 {[%clk 0:01:46]} 23. Nxd4 {[%clk 0:02:17]}  a5 {[%clk 0:01:33]} 24. Nxe6 {[%clk 0:02:13]}  fxe6 {[%clk 0:01:26]} 25. b5 {[%clk 0:02:11]}  Rf8 {[%clk 0:01:18]} 26. f3 {[%clk 0:01:46]}  e5 {[%clk 0:00:54]} 27. b6 {[%clk 0:01:45]}  Qe7 {[%clk 0:00:47]} 28. Rc1 {[%clk 0:01:44]}  Qg5 {[%clk 0:00:44]} 29. Qc3 {[%clk 0:01:35]}  Rf7 {[%clk 0:00:41]} 30. Rh3 {[%clk 0:01:34]}  Kh8 {[%clk 0:00:31]} 31. Rd1 {[%clk 0:01:33]}  Qe7 {[%clk 0:00:30]} 32. Rc1 {[%clk 0:01:32]}  Qf6 {[%clk 0:00:28]} 33. Kg1 {[%clk 0:01:30]}  Qg5 {[%clk 0:00:23]} 34. Rc2 {[%clk 0:01:29]}  Nf6 {[%clk 0:00:22]} 35. g4 {[%clk 0:01:08]}  Raf8 {[%clk 0:00:18]} 36. f4 {[%clk 0:00:44]}  exf4 {[%clk 0:00:17]} 37. exf4 {[%clk 0:00:41]}  Qxf4 {[%clk 0:00:17]} 38. Qe3 {[%clk 0:00:42]}  Qxa4 {[%clk 0:00:16]} 39. Qb3 {[%clk 0:00:38]}  Qd4+ {[%clk 0:00:15]} 40. Qe3 {[%clk 0:00:36]}  Qb4 {[%clk 0:00:14]} 41. Qc3 {[%clk 0:00:34]}  Qb1+ {[%clk 0:00:12]} 42. Rc1 {[%clk 0:00:34]}  Qe4 {[%clk 0:00:12]} 43. Bf3 {[%clk 0:00:32]}  Qf4 {[%clk 0:00:12]} 44. Re1 {[%clk 0:00:16]}  Nxg4 {[%clk 0:00:11]} 45. Qxa5 {[%clk 0:00:14]}  Ne5 {[%clk 0:00:09]} 46. Rf1 {[%clk 0:00:13]}  Qg5+ {[%clk 0:00:08]} 47. Kh2 {[%clk 0:00:09]}  Nxf3+ {[%clk 0:00:08]} 48. Rfxf3 {[%clk 0:00:09]}  Rxf3 {[%clk 0:00:07]} 49. Qa2 {[%clk 0:00:08]}  Qe5+ {[%clk 0:00:05]} 50. Rg3 {[%clk 0:00:06]}  Qxg3+ {[%clk 0:00:05]} 51. Kh1 {[%clk 0:00:06]}  Rf1# {[%clk 0:00:05]} 0-1


[Site "https://www.chess.com"]

[Event "Titled Tuesday Blitz November 22 Late 2022"]
[White "Gorodetzky, David"]
[Black "Fernandez De La Vara, Arnaldo"]
[WhiteFideId "2813416"]
[BlackFideId "3518388"]
[WhiteElo "2497"]
[BlackElo "2387"]
[Result "1-0"]
[Round "05"]
[TimeControl "180+1"]
[Date "2022.11.22"]
[WhiteClock "0:00:36"]
[BlackClock "0:00:05"]

1. c4 {[%clk 0:03:00]}  c5 {[%clk 0:03:00]} 2. Nf3 {[%clk 0:02:58]}  Nc6 {[%clk 0:03:01]} 3. Nc3 {[%clk 0:02:57]}  g6 {[%clk 0:03:01]} 4. g3 {[%clk 0:02:56]}  Bg7 {[%clk 0:03:01]} 5. Bg2 {[%clk 0:02:56]}  d6 {[%clk 0:03:02]} 6. d3 {[%clk 0:02:55]}  Nf6 {[%clk 0:03:03]} 7. a3 {[%clk 0:02:50]}  O-O {[%clk 0:02:59]} 8. Rb1 {[%clk 0:02:50]}  Ne8 {[%clk 0:02:50]} 9. Bd2 {[%clk 0:02:50]}  a5 {[%clk 0:02:50]} 10. h4 {[%clk 0:02:48]}  h6 {[%clk 0:02:43]} 11. h5 {[%clk 0:02:44]}  g5 {[%clk 0:02:43]} 12. Nxg5 {[%clk 0:02:44]}  hxg5 {[%clk 0:02:43]} 13. Bxg5 {[%clk 0:02:45]}  Nc7 {[%clk 0:01:52]} 14. h6 {[%clk 0:02:21]}  Bf6 {[%clk 0:01:51]} 15. h7+ {[%clk 0:02:20]}  Kh8 {[%clk 0:01:50]} 16. Bh6 {[%clk 0:02:20]}  Bg7 {[%clk 0:01:35]} 17. Bxg7+ {[%clk 0:02:16]}  Kxg7 {[%clk 0:01:36]} 18. Qd2 {[%clk 0:02:17]}  Kh8 {[%clk 0:01:23]} 19. Qh6 {[%clk 0:02:15]}  Ne5 {[%clk 0:01:00]} 20. Be4 {[%clk 0:02:11]}  f5 {[%clk 0:00:55]} 21. Bd5 {[%clk 0:02:11]}  e6 {[%clk 0:00:53]} 22. Bg2 {[%clk 0:02:09]}  Qf6 {[%clk 0:00:51]} 23. Qf4 {[%clk 0:02:09]}  Bd7 {[%clk 0:00:37]} 24. Rh6 {[%clk 0:02:08]}  Qg7 {[%clk 0:00:37]} 25. Kd2 {[%clk 0:02:01]}  Rf6 {[%clk 0:00:35]} 26. Rh5 {[%clk 0:01:59]}  Qg4 {[%clk 0:00:31]} 27. Qxg4 {[%clk 0:01:49]}  Nxg4 {[%clk 0:00:32]} 28. Bxb7 {[%clk 0:01:49]}  Rb8 {[%clk 0:00:29]} 29. Bf3 {[%clk 0:01:49]}  Ne5 {[%clk 0:00:13]} 30. Bg2 {[%clk 0:01:46]}  Rf7 {[%clk 0:00:12]} 31. f4 {[%clk 0:01:32]}  Ng4 {[%clk 0:00:11]} 32. Bf3 {[%clk 0:01:31]}  Nf6 {[%clk 0:00:09]} 33. Rh6 {[%clk 0:01:30]}  Nce8 {[%clk 0:00:09]} 34. g4 {[%clk 0:01:13]}  fxg4 {[%clk 0:00:10]} 35. Be4 {[%clk 0:01:13]}  Nxe4+ {[%clk 0:00:09]} 36. Nxe4 {[%clk 0:01:14]}  Rxh7 {[%clk 0:00:09]} 37. Rg6 {[%clk 0:01:13]}  Rg7 {[%clk 0:00:09]} 38. Rh1+ {[%clk 0:01:11]}  Kg8 {[%clk 0:00:10]} 39. Rgh6 {[%clk 0:01:11]}  Kf7 {[%clk 0:00:05]} 40. Kc3 {[%clk 0:01:07]}  Ke7 {[%clk 0:00:05]} 41. Rh7 {[%clk 0:01:04]}  Bc6 {[%clk 0:00:03]} 42. Rxg7+ {[%clk 0:01:02]}  Nxg7 {[%clk 0:00:04]} 43. Rh7 {[%clk 0:01:03]}  Kf7 {[%clk 0:00:04]} 44. Nxd6+ {[%clk 0:01:01]}  Kg6 {[%clk 0:00:05]} 45. Rh4 {[%clk 0:01:00]}  Nf5 {[%clk 0:00:01]} 46. Rxg4+ {[%clk 0:01:00]}  Kf6 {[%clk 0:00:02]} 47. Nxf5 {[%clk 0:00:45]}  exf5 {[%clk 0:00:03]} 48. Rh4 {[%clk 0:00:45]}  Kg6 {[%clk 0:00:03]} 49. Rh3 {[%clk 0:00:42]}  a4 {[%clk 0:00:03]} 50. Rg3+ {[%clk 0:00:40]}  Kf6 {[%clk 0:00:03]} 51. Kc2 {[%clk 0:00:41]}  Rh8 {[%clk 0:00:03]} 52. Re3 {[%clk 0:00:39]}  Rh4 {[%clk 0:00:03]} 53. Re5 {[%clk 0:00:39]}  Rxf4 {[%clk 0:00:02]} 54. Rxc5 {[%clk 0:00:40]}  Bd7 {[%clk 0:00:03]} 55. Kd2 {[%clk 0:00:39]}  Rf1 {[%clk 0:00:02]} 56. Rd5 {[%clk 0:00:38]}  Be8 {[%clk 0:00:01]} 57. c5 {[%clk 0:00:35]}  Ke7 {[%clk 0:00:02]} 58. Re5+ {[%clk 0:00:35]}  Kd7 {[%clk 0:00:01]} 59. c6+ {[%clk 0:00:35]}  Kd8 {[%clk 0:00:02]} 60. c7+ {[%clk 0:00:35]}  Kxc7 {[%clk 0:00:02]} 61. Rxe8 {[%clk 0:00:35]}  f4 {[%clk 0:00:03]} 62. Re4 {[%clk 0:00:34]}  f3 {[%clk 0:00:03]} 63. exf3 {[%clk 0:00:34]}  Rxf3 {[%clk 0:00:04]} 64. Rxa4 {[%clk 0:00:34]}  Kb6 {[%clk 0:00:05]} 65. Rc4 {[%clk 0:00:34]}  Kb5 {[%clk 0:00:05]} 66. Kc3 {[%clk 0:00:34]}  Rf1 {[%clk 0:00:05]} 67. a4+ {[%clk 0:00:35]}  Ka5 {[%clk 0:00:04]} 68. b3 {[%clk 0:00:35]}  Rc1+ {[%clk 0:00:04]} 69. Kb2 {[%clk 0:00:35]}  Rd1 {[%clk 0:00:04]} 70. Rc5+ {[%clk 0:00:36]}  Kb6 {[%clk 0:00:04]} 71. Rd5 {[%clk 0:00:36]}  Kc6 {[%clk 0:00:04]} 72. Rd4 {[%clk 0:00:36]}  Kc5 {[%clk 0:00:04]} 73. Rc4+ {[%clk 0:00:36]}  Kb6 {[%clk 0:00:05]} 74. d4 {[%clk 0:00:37]}  Ka5 {[%clk 0:00:05]} 75. Rc5+ {[%clk 0:00:35]}  Kb6 {[%clk 0:00:04]} 76. Rc4 {[%clk 0:00:35]}  Ka5 {[%clk 0:00:04]} 77. Kc2 {[%clk 0:00:36]}  Rh1 {[%clk 0:00:04]} 78. Rc5+ {[%clk 0:00:36]}  Kb4 {[%clk 0:00:04]} 79. Rb5+ {[%clk 0:00:36]}  Ka3 {[%clk 0:00:05]} 80. d5 {[%clk 0:00:37]}  Rh3 {[%clk 0:00:04]} 81. d6 {[%clk 0:00:37]}  Rh2+ {[%clk 0:00:04]} 82. Kc3 {[%clk 0:00:37]}  Rh6 {[%clk 0:00:04]} 83. Rd5 {[%clk 0:00:36]}  Rh3+ {[%clk 0:00:05]} 84. Kc4 {[%clk 0:00:36]}  Rh4+ {[%clk 0:00:05]} 85. Kc5 {[%clk 0:00:36]} 1-0


[Site "https://www.chess.com"]